fUSD/lending_fUSD_20250417
["ID","MTS","AMOUNT","RATE_DAILY","PERIOD"]
[358248934,1744876284706,-1007.48,0.0005041,120]
[358248935,1744876284716,-559.91,0.0005041,120]
[358248936,1744876284727,-500.0,0.0005041,120]
[358248937,1744876284738,-1373.68,0.0005041,120]
[358248938,1744876284748,-500.0,0.0005041,120]
[358248939,1744876284759,-500.0,0.0005041,30]
[358248940,1744876284769,-940.05,0.0005041,120]
[358248941,1744876284779,-500.0,0.0005041,120]
[358248942,1744876284790,-500.0,0.0005041,120]
[358248943,1744876284800,-1203.26,0.0005041,120]
[358248944,1744876284810,-825.67,0.0005041,120]
[358248945,1744876284820,-1575.92,0.0005041,120]
[358248946,1744876284831,-500.0,0.0005041,120]
[358248947,1744876284840,-500.0,0.0005041,120]
[358248948,1744876284850,-511.85492515,0.0005041,120]
[358248949,1744876284861,-1004.58,0.0005041,120]
[358248950,1744876284871,-500.0,0.0005041,120]
[358248951,1744876284881,-1167.01,0.0005041,120]
[358248952,1744876284891,-500.0,0.0005041,120]
[358248953,1744876284901,-701.01,0.0005041,120]
[358248954,1744876284911,-1323.83,0.0005041,120]
[358248955,1744876284923,-803.28,0.0005041,30]
[358248956,1744876284932,-507.89,0.0005041,120]
[358248957,1744876284943,-1748.54,0.0005041,120]
[358248958,1744876284954,-3514.34,0.0005041,120]
[358248959,1744876284964,-164.42506896,0.0005041,120]
[358248960,1744876284974,-500.0,0.0005041,120]
[358248961,1744876284984,-500.0,0.0005041,120]
[358248962,1744876284994,-500.0,0.0005041,120]
[358248963,1744876285004,-1749.19,0.0005041,120]
[358248964,1744876285015,-424.3119975,0.0005041,120]
[358248965,1744876285024,-1134.15,0.0005041,120]
[358248966,1744876285035,-500.0,0.0005041,120]
[358248967,1744876285046,-1115.45,0.0005041,120]
[358248968,1744876285057,-1157.9,0.0005041,120]
[358248969,1744876285069,-1269.95,0.0005041,120]
[358248970,1744876285079,-500.0,0.0005041,120]
[358248971,1744876285090,-1020.0,0.0005041,120]
[358248972,1744876285101,-500.0,0.0005041,120]
[358248973,1744876285114,-500.0,0.0005041,120]
[358248974,1744876285124,-1129.1,0.0005041,120]
[358248975,1744876285135,-1581.24,0.0005041,120]
[358248976,1744876285144,-568.86,0.0005041,120]
[358248977,1744876285156,-766.52,0.0005041,120]
[358248978,1744876285166,-646.13010469,0.0005041,120]
[358248979,1744876285176,-500.0,0.0005041,120]
[358248980,1744876285191,-500.0,0.0005041,120]
[358248981,1744876285202,-683.59,0.0005041,120]
[358248982,1744876285212,-500.0,0.0005041,120]
[358248983,1744876285223,-605.07,0.0005041,120]
[358248984,1744876285235,-500.0,0.0005041,120]
[358248985,1744876285245,-500.0,0.0005041,120]
[358248986,1744876285256,-1943.48,0.0005041,120]
[358248987,1744876285266,-552.94015909,0.0005041,120]
[358248988,1744876285276,-945.69,0.0005041,120]
[358248989,1744876285288,-500.0,0.0005041,120]
[358248990,1744876285298,-1873.76,0.0005041,120]
[358248991,1744876285308,-500.0,0.0005041,120]
[358248992,1744876285318,-500.0,0.0005041,120]
[358248993,1744876285328,-500.0,0.0005041,120]
[358248994,1744876285338,-500.0,0.0005041,120]
[358248995,1744876285350,-566.9,0.0005041,120]
[358248996,1744876285360,-500.0,0.0005041,120]
[358248997,1744876285371,-536.75,0.0005041,120]
[358248998,1744876285381,-500.0,0.0005041,120]
[358248999,1744876285391,-500.0,0.0005041,30]
[358249000,1744876285402,-1511.21,0.0005041,120]
[358249001,1744876285413,-2015.84,0.0005041,120]
[358249002,1744876285423,-500.0,0.0005041,120]
[358249003,1744876285434,-500.0,0.0005041,120]
[358249004,1744876285444,-576.1,0.0005041,120]
[358249005,1744876285454,-500.0,0.0005041,120]
[358249006,1744876285465,-503.02,0.0005041,120]
[358249007,1744876285476,-1485.3,0.0005041,120]
[358249008,1744876285487,-500.0,0.0005041,120]
[358249009,1744876285498,-616.82,0.0005041,120]
[358249010,1744876285509,-1889.42,0.0005041,120]
[358249011,1744876285519,-500.0,0.0005041,120]
[358249012,1744876285529,-521.54,0.0005041,120]
[358249013,1744876285540,-500.0,0.0005041,120]
[358249014,1744876285550,-500.0,0.0005041,120]
[358249015,1744876285560,-1626.25,0.0005041,120]
[358249016,1744876285571,-1000.0,0.0005041,120]
[358249017,1744876285581,-1339.26,0.0005041,120]
[358249018,1744876285591,-1497.28,0.0005041,120]
[358249019,1744876285601,-1832.25,0.0005041,120]
[358249020,1744876285612,-630.84,0.0005041,120]
[358249021,1744876285622,-603.59253581,0.0005041,120]
[358249022,1744876285632,-500.0,0.0005041,120]
[358249023,1744876285642,-615.64,0.0005041,120]
[358249024,1744876285653,-500.0,0.0005041,120]
[358249025,1744876285663,-500.0,0.0005041,120]
[358249026,1744876285674,-500.0,0.0005041,120]
[358249027,1744876285685,-692.24,0.0005041,120]
[358249028,1744876285696,-500.0,0.0005041,120]
[358249029,1744876285707,-1231.98,0.0005041,120]
[358249030,1744876285718,-1043.32,0.0005041,120]
[358249031,1744876285729,-500.0,0.0005041,120]
[358249032,1744876285739,-500.0,0.0005041,120]
[358249033,1744876285750,-1684.61,0.0005041,120]
[358249034,1744876285760,-500.0,0.0005041,120]
[358249035,1744876285771,-500.0,0.0005041,120]
[358249036,1744876285781,-668.2,0.0005041,120]
[358249037,1744876285792,-500.0,0.0005041,120]
[358249038,1744876285803,-500.0,0.0005041,120]
[358249039,1744876285814,-500.0,0.0005041,120]
[358249040,1744876285824,-500.0,0.0005041,120]
[358249041,1744876285836,-500.0,0.0005041,120]
[358249042,1744876285847,-500.0,0.0005041,120]
[358249043,1744876285858,-500.0,0.0005041,120]
[358249044,1744876285868,-500.0,0.0005041,120]
[358249045,1744876285879,-500.0,0.0005041,120]
[358249046,1744876285889,-864.39,0.0005041,120]
[358249047,1744876285901,-626.02,0.0005041,120]
[358249048,1744876285911,-444.10409172,0.0005041,120]
[358249049,1744876285922,-500.0,0.0005041,120]
[358249050,1744876285932,-1072.56,0.0005041,120]
[358249051,1744876285942,-1764.88,0.0005041,120]
[358249052,1744876285954,-500.0,0.0005041,120]
[358249053,1744876285965,-917.98,0.0005041,120]
[358249054,1744876285975,-5640.62,0.0005041,120]
[358249055,1744876285986,-1475.44,0.0005041,120]
[358249056,1744876285997,-500.0,0.0005041,120]
[358249057,1744876286007,-500.0,0.0005041,120]
[358249058,1744876286018,-1612.75,0.0005041,120]
[358249059,1744876286028,-500.0,0.0005041,120]
[358249060,1744876286038,-500.0,0.0005041,120]
[358249061,1744876286048,-500.0,0.0005041,120]
[358249062,1744876286057,-2211.01,0.0005041,120]
[358249063,1744876286067,-791.97,0.0005041,14]
[358249064,1744876286077,-1177.02,0.0005041,120]
[358249065,1744876286088,-500.0,0.0005041,120]
[358249066,1744876286098,-1468.16,0.0005041,120]
[358249067,1744876286113,-1829.33,0.0005041,120]
[358249068,1744876286123,-509.62799494,0.0005041,120]
[358249069,1744876286136,-500.0,0.0005041,120]
[358249070,1744876286148,-500.0,0.0005041,120]
[358249071,1744876286158,-520.62,0.0005041,120]
[358249072,1744876286168,-500.0,0.0005041,120]
[358249073,1744876286179,-500.0,0.0005041,120]
[358249074,1744876286192,-500.0,0.0005041,120]
[358249075,1744876286203,-793.46,0.0005041,120]
[358249076,1744876286213,-500.0,0.0005041,120]
[358249077,1744876286222,-500.0,0.0005041,120]
[358249078,1744876286233,-500.0,0.0005041,120]
[358249079,1744876286473,-500.0,0.0005041,120]
[358249080,1744876286486,-500.0,0.0005041,120]
[358249081,1744876286497,-500.0,0.0005041,120]
[358249082,1744876286508,-527.45,0.0005041,120]
[358249083,1744876286518,-1128.03,0.0005041,120]
[358249084,1744876286528,-500.0,0.0005041,120]
[358249085,1744876286538,-500.0,0.0005041,120]
[358249086,1744876286548,-500.0,0.0005041,120]
[358249087,1744876286558,-500.0,0.0005041,120]
[358249088,1744876286569,-500.0,0.0005041,120]
[358249089,1744876286579,-500.0,0.0005041,120]
[358249090,1744876286589,-10543.98,0.0005041,120]
[358249091,1744876286599,-10543.98,0.0005041,120]
[358249092,1744876286609,-629.32908688,0.0005041,120]
[358249093,1744876286619,-674.54,0.0005041,120]
[358249094,1744876286629,-504.45,0.0005041,120]
[358249095,1744876286638,-500.0,0.0005041,14]
[358249096,1744876286648,-500.0,0.0005041,120]
[358249097,1744876286657,-500.0,0.0005041,120]
[358249098,1744876286667,-586.57,0.0005041,120]
[358249099,1744876286677,-500.0,0.0005041,120]
[358249100,1744876286686,-500.0,0.0005041,120]
[358249101,1744876286696,-500.0,0.0005041,120]
[358249102,1744876286705,-500.0,0.0005041,120]
[358249103,1744876286715,-1036.71,0.0005041,120]
[358249104,1744876286725,-500.0,0.0005041,120]
[358249105,1744876286736,-500.0,0.0005041,120]
[358249106,1744876286745,-909.38,0.0005041,120]
[358249107,1744876286755,-500.0,0.0005041,120]
[358249108,1744876286765,-500.0,0.0005041,120]
[358249109,1744876286774,-500.0,0.0005041,120]
[358249110,1744876286784,-500.0,0.0005041,120]
[358249111,1744876286794,-1171.86,0.0005041,120]
[358249112,1744876286804,-500.0,0.0005041,120]
[358249113,1744876286813,-500.0,0.0005041,120]
[358249114,1744876286823,-2181.26,0.0005041,120]
[358249115,1744876286832,-675.13,0.0005041,120]
[358249116,1744876286842,-500.0,0.0005041,120]
[358249117,1744876286852,-500.0,0.0005041,120]
[358249118,1744876286863,-500.0,0.0005041,120]
[358249119,1744876286873,-500.0,0.0005041,120]
[358249120,1744876286883,-500.0,0.0005041,120]
[358249121,1744876286893,-500.0,0.0005041,120]
[358249122,1744876286903,-381.38595721,0.0005041,120]
[358249123,1744876286912,-500.0,0.0005041,120]
[358249124,1744876286922,-1081.53,0.0005041,120]
[358249125,1744876286932,-500.0,0.0005041,120]
[358249126,1744876286942,-1595.7,0.0005041,120]
[358249127,1744876286951,-500.0,0.0005041,120]
[358249128,1744876286961,-1097.37,0.0005041,120]
[358249129,1744876286970,-500.0,0.0005041,120]
[358249130,1744876286981,-500.0,0.0005041,120]
[358249131,1744876286992,-1093.79,0.0005041,120]
[358249132,1744876287002,-722.02,0.0005041,120]
[358249133,1744876287012,-500.0,0.0005041,120]
[358249134,1744876287021,-978.59,0.0005041,120]
[358249135,1744876287031,-500.0,0.0005041,120]
[358249136,1744876287040,-1836.63,0.0005041,120]
[358249137,1744876287050,-500.0,0.0005041,120]
[358249138,1744876287060,-614.33,0.0005041,120]
[358249139,1744876287071,-1012.01,0.0005041,120]
[358249140,1744876287080,-2529.41,0.0005041,120]
[358249141,1744876287090,-1942.54,0.0005041,120]
[358249142,1744876287100,-500.0,0.0005041,120]
[358249143,1744876287111,-2464.72,0.0005041,120]
[358249144,1744876287122,-561.14866221,0.0005041,120]
[358249145,1744876287132,-500.0,0.0005041,120]
[358249146,1744876287142,-306.760662,0.0005041,120]
[358249147,1744876287151,-1110.2,0.0005041,120]
[358249148,1744876287162,-771.84,0.0005041,120]
[358249149,1744876287172,-500.0,0.0005041,120]
[358249150,1744876287182,-1931.2,0.0005041,120]
[358249151,1744876287193,-500.0,0.0005041,120]
[358249152,1744876287203,-500.0,0.0005041,120]
[358249153,1744876287213,-500.0,0.0005041,120]
[358249154,1744876287222,-676.22,0.0005041,120]
[358249155,1744876287232,-288.85794704,0.0005041,120]
[358249156,1744876287242,-500.0,0.0005041,120]
[358249157,1744876287251,-500.0,0.0005041,120]
[358249158,1744876287261,-601.64,0.0005041,120]
[358249159,1744876287271,-2027.54,0.0005041,120]
[358249160,1744876287280,-1731.61,0.0005041,120]
[358249161,1744876287290,-500.0,0.0005041,120]
[358249162,1744876287300,-506.42,0.0005041,120]
[358249163,1744876287310,-1571.6,0.0005041,120]
[358249164,1744876287319,-560.74,0.0005041,120]
[358249165,1744876287330,-500.0,0.0005041,120]
[358249166,1744876287339,-575.17,0.0005041,120]
[358249167,1744876287351,-500.0,0.0005041,120]
[358249168,1744876287361,-500.0,0.0005041,120]
[358249169,1744876287371,-1491.97,0.0005041,120]
[358249170,1744876287380,-500.0,0.0005041,120]
[358249171,1744876287390,-1061.2,0.0005041,120]
[358249172,1744876287400,-500.0,0.0005041,120]
[358249173,1744876287410,-1783.03,0.0005041,120]
[358249174,1744876287420,-500.0,0.0005041,120]
[358249175,1744876287430,-559.87,0.0005041,120]
[358249176,1744876287439,-500.0,0.0005041,120]
[358249177,1744876287449,-500.0,0.0005041,120]
[358249178,1744876287458,-500.0,0.0005041,120]
[358249179,1744876287467,-500.0,0.0005041,120]
[358249180,1744876287477,-1489.6,0.0005041,120]
[358249181,1744876287486,-3035.42,0.0005041,120]
[358249182,1744876287497,-2015.28,0.0005041,120]
[358249183,1744876287506,-1985.57,0.0005041,120]
[358249184,1744876287516,-835.38,0.0005041,120]
[358249185,1744876287526,-843.17,0.0005041,120]
[358249186,1744876287536,-500.0,0.0005041,120]
[358249187,1744876287545,-728.48,0.0005041,120]
[358249188,1744876287555,-2125.57,0.0005041,120]
[358249189,1744876287565,-517.91,0.0005041,120]
[358249190,1744876287574,-506.65,0.0005041,120]
[358249191,1744876287584,-500.0,0.0005041,120]
[358249192,1744876287594,-531.0,0.0005041,120]
[358249193,1744876287603,-1110.06,0.0005041,120]
[358249194,1744876287613,-376.48900168,0.0005041,120]
[358249195,1744876287622,-500.0,0.0005041,120]
[358249196,1744876287632,-3548.1,0.0005041,120]
[358249197,1744876287642,-887.03,0.0005041,120]
[358249198,1744876287652,-500.0,0.0005041,120]
[358249199,1744876287661,-1073.22,0.0005041,120]
[358249200,1744876287671,-500.0,0.0005041,120]
[358249201,1744876287680,-500.0,0.0005041,120]
[358249202,1744876287690,-500.0,0.0005041,120]
[358249203,1744876287699,-500.0,0.0005041,120]
[358249204,1744876287709,-500.0,0.0005041,120]
[358249205,1744876287719,-500.0,0.0005041,120]
[358249206,1744876287729,-500.0,0.0005041,120]
[358249207,1744876287739,-500.0,0.0005041,120]
[358249208,1744876287749,-500.0,0.0005041,120]
[358249209,1744876287759,-500.0,0.0005041,120]
[358249210,1744876287769,-1152.77,0.0005041,120]
[358249211,1744876287778,-2168.54,0.0005041,120]
[358249212,1744876287788,-568.46,0.0005041,120]
[358249213,1744876287797,-500.0,0.0005041,120]
[358249214,1744876287806,-500.0,0.0005041,120]
[358249215,1744876287816,-500.0,0.0005041,120]
[358249216,1744876287825,-888.6,0.0005041,120]
[358249217,1744876287835,-500.0,0.0005041,120]
[358249218,1744876287844,-1780.21,0.0005041,120]
[358249219,1744876287853,-500.0,0.0005041,120]
[358249220,1744876287862,-979.12,0.0005041,120]
[358249221,1744876287872,-2832.46,0.0005041,120]
[358249222,1744876287881,-1076.61,0.0005041,120]
[358249223,1744876287891,-518.93,0.0005041,120]
[358249224,1744876287900,-500.0,0.0005041,120]
[358249225,1744876287909,-889.68,0.0005041,120]
[358249226,1744876287919,-500.0,0.0005041,120]
[358249227,1744876287928,-284.20412763,0.0005041,120]
[358249228,1744876287938,-3566.71,0.0005041,120]
[358249229,1744876287948,-500.0,0.0005041,120]
[358249230,1744876287958,-1124.76,0.0005041,120]
[358249231,1744876287967,-1217.56,0.0005041,120]
[358249232,1744876287977,-1639.19,0.0005041,120]
[358249233,1744876287988,-1092.56,0.0005041,120]
[358249234,1744876287998,-500.0,0.0005041,120]
[358249235,1744876288008,-972.81,0.0005041,118]
[358249236,1744876288017,-1788.27,0.0005041,120]
[358249237,1744876288027,-861.37,0.0005041,120]
[358249238,1744876288037,-822.54,0.0005041,120]
[358249239,1744876288046,-500.0,0.0005041,120]
[358249240,1744876288056,-500.0,0.0005041,120]
[358249241,1744876288065,-500.0,0.0005041,120]
[358249242,1744876288075,-702.66,0.0005041,120]
[358249243,1744876288084,-1270.01,0.0005041,120]
[358249244,1744876288094,-500.0,0.0005041,120]
[358249245,1744876288104,-507.14,0.0005041,120]
[358249246,1744876288117,-500.0,0.0005041,120]
[358249247,1744876288127,-909.8,0.0005041,120]
[358249248,1744876288136,-593.0,0.0005041,120]
[358249249,1744876288146,-753.51,0.0005041,120]
[358249250,1744876288155,-516.56,0.0005041,120]
[358249251,1744876288165,-973.47,0.0005041,120]
[358249252,1744876288175,-500.0,0.0005041,120]
[358249253,1744876288185,-2790.52,0.0005041,120]
[358249254,1744876288195,-500.0,0.0005041,120]
[358249255,1744876288206,-500.0,0.0005041,120]
[358249256,1744876288215,-500.0,0.0005041,120]
[358249257,1744876288224,-555.93,0.0005041,120]
[358249258,1744876288234,-554.36,0.0005041,120]
[358249259,1744876288244,-1344.71,0.0005041,120]
[358249260,1744876288253,-1633.9,0.0005041,120]
[358249261,1744876288263,-1508.99,0.0005041,120]
[358249262,1744876288273,-500.0,0.0005041,120]
[358249263,1744876288283,-500.0,0.0005041,120]
[358249264,1744876288292,-801.2,0.0005041,120]
[358249265,1744876288302,-3739.63,0.0005041,120]
[358249266,1744876288311,-2484.07,0.0005041,120]
[358249267,1744876288321,-500.0,0.0005041,120]
[358249268,1744876288331,-500.0,0.0005041,120]
[358249269,1744876288340,-500.0,0.0005041,120]
[358249270,1744876288351,-605.98,0.0005041,120]
[358249271,1744876288361,-500.0,0.0005041,120]
[358249272,1744876288370,-500.0,0.0005041,120]
[358249273,1744876288380,-3141.6,0.0005041,120]
[358249274,1744876288389,-536.48,0.0005041,120]
[358249275,1744876288399,-1042.98,0.0005041,120]
[358249276,1744876288409,-1821.22,0.0005041,120]
[358249277,1744876288418,-500.0,0.0005041,120]
[358249278,1744876288427,-1155.97,0.0005041,120]
[358249279,1744876288437,-500.0,0.0005041,120]
[358249280,1744876288446,-608.82,0.0005041,120]
[358249281,1744876288456,-500.0,0.0005041,120]
[358249282,1744876288466,-1542.01,0.0005041,120]
[358249283,1744876288476,-500.0,0.0005041,120]
[358249284,1744876288485,-472.41010786,0.0005041,120]
[358249285,1744876288495,-500.0,0.0005041,120]
[358249286,1744876288504,-608.54,0.0005041,120]
[358249287,1744876288514,-500.0,0.0005041,120]
[358249288,1744876288523,-1023.29,0.0005041,120]
[358249289,1744876288532,-505.15,0.0005041,120]
[358249290,1744876288542,-512.28,0.0005041,120]
[358249291,1744876288552,-996.12,0.0005041,120]
[358249292,1744876288561,-416.95303499,0.0005041,120]
[358249293,1744876288570,-500.0,0.0005041,120]
[358249294,1744876288579,-821.03,0.0005041,120]
[358249295,1744876288589,-500.0,0.0005041,120]
[358249296,1744876288598,-1488.96,0.0005041,120]
[358249297,1744876288607,-533.51,0.0005041,120]
[358249298,1744876288617,-2888.97,0.0005041,120]
[358249299,1744876288626,-500.0,0.0005041,120]
[358249300,1744876288636,-605.83,0.0005041,120]
[358249301,1744876288646,-500.0,0.0005041,120]
[358249302,1744876288655,-570.18,0.0005041,120]
[358249303,1744876288664,-722.72,0.0005041,120]
[358249304,1744876288674,-754.15,0.0005041,120]
[358249305,1744876288683,-1214.83,0.0005041,120]
[358249306,1744876288692,-3500.0,0.0005041,10]
[358249307,1744876288702,-500.0,0.0005041,120]
[358249308,1744876288711,-500.0,0.0005041,2]
[358249309,1744876288720,-1002.18,0.0005041,8]
[358249310,1744876288729,-500.0,0.0005041,120]
[358249311,1744876288739,-1218.38,0.0005041,120]
[358249312,1744876288748,-1097.9,0.0005041,120]
[358249313,1744876288756,-500.0,0.0005041,120]
[358249314,1744876288765,-1622.19,0.0005041,120]
[358249315,1744876288774,-7361.74,0.0005041,120]
[358249316,1744876288861,-779.5,0.0005041,120]
[358249317,1744876288870,-2365.86,0.0005041,120]
[358249318,1744876288879,-500.0,0.0005041,120]
[358249319,1744876288889,-500.0,0.0005041,120]
[358249320,1744876288898,-500.0,0.0005041,120]
[358249321,1744876288907,-350.80862421,0.00050421,10]
[358249322,1744876288916,-435.48917781,0.00050431,15]
[358249323,1744876288926,-403.53418933,0.00050479,27]
[358249324,1744876288935,-658.32958279,0.00050521,120]
[358249325,1744876288944,-435.48917781,0.00050584,15]
[358249326,1744876288953,-474.97054933,0.00050585,41]
[358249327,1744876288963,-2110.0,0.00050602,30]
[358249328,1744876288972,-1974.3011892,0.00050649,2]
[358249329,1744876288981,-10663.9296736,0.00050649,2]
[358249330,1744876288991,-86433.625466,0.00050649,2]
[358249331,1744876289005,-11901.3164099,0.00050649,2]
[358249332,1744876289014,-2953.7317219,0.00050649,2]
[358249333,1744876289023,-2031.6914245,0.00050649,2]
[358249334,1744876289032,-500.0,0.00050683,120]
[358249335,1744876289041,-500.0,0.00050683,120]
[358249336,1744876289050,-500.0,0.00050683,120]
[358249337,1744876289059,-353.46428472,0.00050683,120]
[358249338,1744876289069,-158.811424,0.00050684,120]
[358249339,1744876289078,-591.156374,0.00050684,120]
[358249340,1744876289087,-227.981738,0.00050684,120]
[358249341,1744876289096,-500.0,0.00050684,120]
[358249342,1744876289106,-1611.74,0.00050684,120]
[358249343,1744876289120,-500.0,0.00050684,120]
[358249344,1744876289129,-772.09,0.00050684,120]
[358249345,1744876289138,-3077.05,0.00050684,120]
[358249346,1744876289147,-500.0,0.00050684,120]
[358249347,1744876289158,-500.0,0.00050684,120]
[358249348,1744876289167,-516.0,0.00050684,120]
[358249349,1744876289177,-825.74,0.00050684,120]
[358249350,1744876289188,-500.0,0.00050684,120]
[358249351,1744876289197,-500.0,0.00050684,120]
[358249352,1744876289206,-500.0,0.00050684,120]
[358249353,1744876289215,-493.51758548,0.00050684,120]
[358249354,1744876289224,-1329.86,0.00050684,120]
[358249355,1744876289234,-1041.46,0.00050684,120]
[358249356,1744876289244,-500.0,0.00050684,120]
[358249357,1744876289254,-500.0,0.00050684,120]
[358249358,1744876289264,-995.71,0.00050684,120]
[358249359,1744876289273,-500.0,0.00050684,120]
[358249360,1744876289282,-500.0,0.00050684,120]
[358249361,1744876289291,-561.46,0.00050684,30]
[358249362,1744876289301,-500.0,0.00050684,120]
[358249363,1744876289310,-889.17,0.00050684,120]
[358249364,1744876289319,-1598.19,0.00050684,120]
[358249365,1744876289328,-500.0,0.00050684,120]
[358249366,1744876289337,-2447.13,0.00050684,120]
[358249367,1744876289347,-934.81,0.00050684,120]
[358249368,1744876289357,-500.0,0.00050684,120]
[358249369,1744876289366,-558.88,0.00050684,120]
[358249370,1744876289376,-500.0,0.00050684,120]
[358249371,1744876289385,-500.0,0.00050684,120]
[358249372,1744876289395,-500.0,0.00050684,120]
[358249373,1744876289404,-506.59765653,0.00050684,120]
[358249374,1744876289414,-500.0,0.00050684,120]
[358249375,1744876289423,-500.0,0.00050684,120]
[358249376,1744876289432,-500.0,0.00050684,120]
[358249377,1744876289442,-120995.21,0.00050684,7]
[358249378,1744876289451,-500.0,0.00050684,120]
[358249379,1744876289460,-1597.3,0.00050684,120]
[358249380,1744876289469,-724.18,0.00050684,2]
[358249381,1744876289478,-500.0,0.00050684,120]
[358249382,1744876289490,-500.0,0.00050684,120]
[358249383,1744876289499,-1073.23,0.00050684,120]
[358249384,1744876289508,-500.0,0.00050684,120]
[358249385,1744876289518,-852.63,0.00050684,120]
[358249386,1744876289527,-500.0,0.00050684,120]
[358249387,1744876289536,-9618.82,0.00050684,2]
[358249388,1744876289545,-500.0,0.00050684,120]
[358249389,1744876289554,-500.0,0.00050684,120]
[358249390,1744876289562,-500.0,0.00050684,120]
[358249391,1744876289572,-748.68,0.00050684,120]
[358249392,1744876289581,-507.6,0.00050684,120]
[358249393,1744876289590,-585.3459784,0.00050684,120]
[358249394,1744876289600,-500.0,0.00050684,120]
[358249395,1744876289609,-4167.06,0.00050684,120]
[358249396,1744876289618,-547.49,0.00050684,120]
[358249397,1744876289627,-762.47,0.00050684,120]
[358249398,1744876289637,-1761.11,0.00050684,120]
[358249399,1744876289646,-500.0,0.00050684,120]
[358249400,1744876289655,-500.0,0.00050684,120]
[358249401,1744876289664,-603.07,0.00050684,120]
[358249402,1744876289674,-677.96,0.00050684,120]
[358249403,1744876289684,-895.97,0.00050684,120]
[358249404,1744876289693,-2042.51,0.00050684,120]
[358249405,1744876289702,-2095.32,0.00050684,120]
[358249406,1744876289711,-500.0,0.00050684,120]
[358249407,1744876289720,-500.0,0.00050684,120]
[358249408,1744876289730,-783.72,0.00050684,120]
[358249409,1744876289740,-568.82,0.00050684,120]
[358249410,1744876289750,-670.78,0.00050684,120]
[358249411,1744876289759,-1727.55,0.00050684,120]
[358249412,1744876289769,-500.0,0.00050684,120]
[358249413,1744876289778,-500.0,0.00050684,120]
[358249414,1744876289788,-500.0,0.00050684,120]
[358249415,1744876289798,-1214.17,0.00050684,120]
[358249416,1744876289807,-500.0,0.00050684,120]
[358249417,1744876289816,-312.02831939,0.00050684,120]
[358249418,1744876289826,-500.0,0.00050684,120]
[358249419,1744876289836,-234.28130695,0.00050684,120]
[358249420,1744876289845,-563.29,0.00050684,120]
[358249421,1744876289855,-765.17,0.00050684,120]
[358249422,1744876289865,-781.9,0.00050684,120]
[358249423,1744876289874,-2735.7,0.00050684,120]
[358249424,1744876289884,-2102.94,0.00050684,120]
[358249425,1744876289893,-1420.11,0.00050684,120]
[358249426,1744876289903,-500.0,0.00050684,120]
[358249427,1744876289912,-541.28,0.00050684,120]
[358249428,1744876289921,-500.0,0.00050684,120]
[358249429,1744876289930,-524.96,0.00050684,120]
[358249430,1744876289939,-500.0,0.00050684,120]
[358249431,1744876289948,-500.0,0.00050684,120]
[358249432,1744876289957,-776.69,0.00050684,120]
[358249433,1744876289967,-1055.54,0.00050684,120]